bitfinex/quotes_SOLUSD_20240926
["timestamp","ask_amount","ask_price","bid_price","bid_amount"]
[1727338661657,6.583,151.91,151.88,23.776884]
[1727338663555,6.1099,151.92,151.88,25.09347696]
[1727338663758,12.6924,151.92,151.9,23.776884]
[1727338666762,15.7705,151.95,151.91,1.31650521]
[1727338666763,6.582,151.93,151.91,1.31650521]
[1727338668546,6.582,151.93,151.88,6.5839]
[1727338669158,20.0,151.94,151.88,6.5839]
[1727338669460,6.5824,151.92,151.88,6.5839]
[1727338669870,20.0,151.94,151.88,6.5839]
[1727338670053,6.582,151.93,151.89,1.31644983]
[1727338670538,6.582,151.93,151.89,7.90004983]
[1727338670734,6.582,151.93,151.89,6.5836]
[1727338671037,6.582,151.93,151.88,6.584]
[1727338671665,21.38437786,151.94,151.87,23.0456]
[1727338671971,6.5829,151.91,151.87,16.4612]
[1727338673767,6.5845,151.87,151.86,0.2574725]
[1727338673964,7.47497786,151.9,151.86,0.2574725]
[1727338674264,6.0906,151.9,151.86,0.2574725]
[1727338675451,12.6742,151.9,151.86,0.2574725]
[1727338675652,6.0906,151.9,151.86,6.8423725]
[1727338675854,6.0906,151.9,151.87,1.31669032]
[1727338677346,6.0906,151.9,151.86,6.8423725]
[1727338677562,6.5829,151.91,151.86,6.8423725]
[1727338677954,6.5829,151.91,151.87,1.31667205]
[1727338678148,26.3084,151.94,151.87,1.31667205]
[1727338678471,6.582,151.93,151.88,6.5839]
[1727338678642,6.582,151.93,151.89,1.31656903]
[1727338678848,6.582,151.93,151.89,7.90016903]
[1727338679046,6.582,151.93,151.89,6.5836]
[1727338679649,6.582,151.93,151.88,6.584]
[1727338680650,6.5825,151.92,151.88,6.584]
[1727338681773,27.69277786,151.94,151.88,6.584]
[1727338681977,6.582,151.93,151.88,6.584]
[1727338682359,32.8902,151.94,151.89,7.90009295]
[1727338682779,6.582,151.93,151.89,6.5836]
[1727338683249,7.96637786,151.93,151.87,16.4608]
[1727338683450,1.38437786,151.93,151.87,16.4608]
[1727338683671,6.5828,151.91,151.87,23.0452]
[1727338684277,6.5828,151.91,151.87,16.4608]
[1727338684582,1.38437786,151.93,151.86,6.8422725]
[1727338684583,6.5834,151.9,151.86,6.8422725]
[1727338685365,6.5829,151.91,151.86,0.2574725]
[1727338685669,6.582,151.93,151.88,6.584]
[1727338685863,6.582,151.93,151.89,7.90008452]
[1727338686451,6.5827,151.92,151.87,6.5844]
[1727338686651,6.5836,151.9,151.86,16.7194725]
[1727338687769,6.5836,151.9,151.86,23.3042725]
[1727338688987,6.5836,151.9,151.87,23.776884]
[1727338692781,6.584,151.89,151.86,24.0343565]
[1727338693684,1.50986786,151.93,151.86,24.0343565]
[1727338693862,6.5833,151.9,151.86,24.0343565]
[1727338694060,6.5825,151.92,151.88,23.776884]
[1727338694260,20.0,151.91,151.88,23.776884]
[1727338694990,26.5829,151.91,151.88,23.776884]
[1727338695292,26.5829,151.91,151.87,23.776884]
[1727338695464,6.5824,151.92,151.87,30.361184]
[1727338696510,21.38437786,151.93,151.87,23.776884]
[1727338696677,6.5841,151.88,151.86,0.2574725]
[1727338699480,6.5845,151.87,151.86,0.2574725]
[1727338699980,6.5842,151.88,151.86,0.2574725]
[1727338702777,6.5838,151.89,151.86,0.2574725]
[1727338703804,6.5838,151.89,151.87,23.776884]
[1727338704107,6.5833,151.9,151.87,23.776884]
[1727338706203,7.96827786,151.89,151.86,24.0343565]
[1727338706388,6.5839,151.89,151.86,0.2574725]
[1727338707182,1.38437786,151.92,151.86,0.2574725]
[1727338707183,6.5843,151.88,151.86,0.2574725]
[1727338711406,6.5845,151.87,151.86,0.2574725]
[1727338711607,26.5845,151.87,151.86,0.2574725]
[1727338712113,26.83548,151.87,151.86,0.2574725]
[1727338716112,28.21985786,151.87,151.86,0.2574725]
[1727338717394,21.63535786,151.87,151.82,0.2574725]
[1727338717599,26.83728,151.83,151.82,0.2574725]
[1727338717890,26.5863,151.83,151.82,0.2574725]
[1727338718095,20.0,151.83,151.82,0.2574725]
[1727338718412,6.5859,151.84,151.82,0.2574725]
[1727338720182,0.25098,151.85,151.82,0.2574725]
[1727338720409,6.5863,151.83,151.82,0.2574725]
[1727338722108,26.5863,151.83,151.82,0.2574725]
[1727338724304,26.83728,151.83,151.82,0.2574725]
[1727338729290,20.0,151.83,151.82,0.2574725]
[1727338729600,26.5863,151.83,151.82,0.2574725]
[1727338730413,20.0,151.83,151.82,0.2574725]
[1727338731115,26.5863,151.83,151.82,0.2574725]
[1727338731632,26.83728,151.83,151.82,0.2574725]
[1727338731991,26.5863,151.83,151.82,0.2574725]
[1727338735007,20.0,151.83,151.82,0.2574725]
[1727338740826,26.5863,151.83,151.82,0.2574725]
[1727338746202,20.0,151.83,151.82,0.2574725]
[1727338746830,27.97067786,151.83,151.82,0.2574725]
[1727338747330,26.5863,151.83,151.82,0.2574725]
[1727338750426,20.0,151.83,151.82,0.2574725]
[1727338751340,6.585,151.86,151.82,6.8439725]
[1727338751632,6.5851,151.86,151.83,23.776884]
[1727338752429,6.5851,151.86,151.82,24.0343565]
[1727338752725,8.63587851,151.92,151.83,13.42106724]
[1727338753033,6.5832,151.91,151.87,23.776884]
[1727338755243,20.0,151.9,151.87,23.776884]
[1727338755740,16.452,151.96,151.87,23.776884]
[1727338755919,6.5824,151.92,151.87,30.361384]
[1727338759132,1.38437786,151.91,151.87,23.776884]
[1727338759442,6.5834,151.9,151.86,23.776884]
[1727338759915,7.96817786,151.89,151.84,23.0495]
[1727338760119,6.5845,151.87,151.82,16.1924725]
[1727338760331,1.38437786,151.86,151.82,16.1924725]
[1727338760532,0.25098,151.89,151.82,16.1924725]
[1727338760843,6.5854,151.85,151.82,16.1924725]
[1727338761349,6.585,151.86,151.82,16.1924725]
[1727338763220,6.585,151.86,151.83,23.776884]
[1727338765353,6.5846,151.87,151.83,23.776884]
[1727338765940,6.5841,151.88,151.84,6.5858]
[1727338766252,6.5841,151.88,151.85,23.776884]
[1727338768938,20.0,151.92,151.85,23.776884]
[1727338769142,6.5837,151.89,151.85,23.776884]
[1727338769352,1.38437786,151.88,151.85,23.776884]
[1727338769536,6.5849,151.87,151.85,23.776884]
[1727338770248,6.5849,151.87,151.84,23.776884]
[1727338770433,7.96937786,151.86,151.83,23.776884]
[1727338770632,6.585,151.86,151.83,23.776884]
[1727338770935,6.5846,151.87,151.83,23.776884]
[1727338772537,6.5846,151.87,151.83,30.362984]
[1727338776749,6.5842,151.88,151.83,43.78405124]
[1727338777660,6.5842,151.88,151.84,13.42106724]
[1727338777956,6.584,151.89,151.85,23.776884]
[1727338778162,6.584,151.89,151.85,37.19795124]
[1727338780445,1.38437786,151.91,151.85,37.19795124]
[1727338780650,20.0,151.89,151.85,43.78305124]
[1727338780855,20.0,151.89,151.86,6.585]
[1727338781347,20.0,151.89,151.85,43.78325124]
[1727338782160,6.5837,151.89,151.85,43.78325124]
[1727338783246,6.5837,151.89,151.85,37.19795124]
[1727338783767,6.5841,151.88,151.85,23.776884]
[1727338788444,1.38437786,151.87,151.84,23.776884]
[1727338789973,6.5841,151.88,151.84,23.776884]
[1727338791263,1.63535786,151.92,151.84,23.776884]
[1727338791264,6.5847,151.87,151.84,23.776884]
[1727338791469,6.5847,151.87,151.83,23.0514]
[1727338791650,1.38437786,151.86,151.83,23.0514]
[1727338792565,6.5847,151.87,151.83,23.0514]
[1727338793055,1.38437786,151.86,151.83,23.0514]
[1727338794175,6.5847,151.87,151.83,23.0514]
[1727338794561,1.38437786,151.86,151.83,23.0514]
[1727338794964,6.5841,151.88,151.84,23.776884]
[1727338795161,6.5841,151.88,151.84,43.78375124]
[1727338796849,0.12549,151.89,151.84,43.78375124]
[1727338797049,6.5837,151.89,151.84,43.78375124]
[1727338800164,0.12549,151.9,151.84,43.78375124]
[1727338800364,0.25098,151.9,151.84,43.78375124]
[1727338800761,0.12549,151.9,151.84,37.19795124]
[1727338800955,0.12549,151.9,151.86,23.776884]
[1727338801171,0.12549,151.9,151.84,38.51490085]
[1727338801479,6.5835,151.9,151.85,6.5853]
[1727338801784,20.0,151.89,151.86,23.776884]
[1727338805184,1.38437786,151.88,151.84,20.00676724]
[1727338805569,7.96847786,151.88,151.85,23.776884]
[1727338805771,6.5841,151.88,151.85,23.776884]
[1727338806078,7.96907786,151.87,151.83,16.4652]
[1727338806482,0.12549,151.85,151.82,0.2574725]
[1727338806782,1.50986786,151.85,151.82,0.2574725]
[1727338807369,6.5859,151.84,151.82,0.2574725]
[1727338807683,1.38437786,151.83,151.82,0.2574725]
[1727338808664,6.83648,151.85,151.82,0.2574725]
[1727338808867,1.38437786,151.84,151.82,0.2574725]
[1727338809085,0.12549,151.85,151.82,0.2574725]
[1727338809794,20.12549,151.85,151.82,0.2574725]
[1727338809959,20.0,151.85,151.82,0.2574725]
[1727338811285,6.5854,151.85,151.82,0.2574725]
[1727338813088,1.38437786,151.84,151.82,0.2574725]
[1727338813466,6.5854,151.85,151.82,0.2574725]
[1727338815487,20.0,151.85,151.82,6.8441725]
[1727338819082,16.4564,151.92,151.84,20.00676724]
[1727338819396,6.584,151.89,151.85,23.776884]
[1727338819898,1.38437786,151.88,151.85,23.776884]
[1727338821086,1.38437786,151.88,151.85,30.362184]
[1727338821267,1.38437786,151.88,151.85,23.776884]
[1727338832503,6.5833,151.9,151.86,23.776884]
[1727338832698,20.0,151.89,151.86,23.776884]
[1727338832889,21.38437786,151.89,151.86,23.776884]
[1727338833696,6.5833,151.9,151.86,23.776884]
[1727338834001,6.5828,151.91,151.87,6.5845]
[1727338834397,7.96757786,151.9,151.86,20.00596724]
[1727338834706,6.5832,151.9,151.86,6.5849]
[1727338840303,7.96807786,151.89,151.85,43.78335124]
[1727338840511,1.38437786,151.89,151.85,43.78335124]
[1727338843306,6.5842,151.88,151.85,23.776884]
[1727338845204,6.5854,151.85,151.82,0.2574725]
[1727338845511,6.5859,151.84,151.82,0.2574725]
[1727338845688,6.5855,151.85,151.82,0.2574725]
[1727338847506,1.38437786,151.86,151.82,0.2574725]
[1727338847716,26.5847,151.87,151.82,6.8439725]
[1727338849712,6.585,151.86,151.82,6.8439725]
[1727338850293,6.585,151.86,151.82,0.2574725]
[1727338850500,20.12549,151.88,151.82,0.2574725]
[1727338850704,20.0,151.86,151.82,6.8440725]
[1727338851492,6.585,151.86,151.82,6.8440725]
[1727338852314,6.585,151.86,151.82,20.26513974]
[1727338852509,6.5845,151.87,151.82,20.26513974]
[1727338852811,20.0,151.86,151.82,20.26513974]
[1727338854215,20.0,151.86,151.83,23.776884]
[1727338855712,6.5841,151.88,151.83,30.362784]
[1727338855896,20.0,151.87,151.84,1.31711102]
[1727338856616,20.0,151.87,151.83,43.78385124]
[1727338859223,20.0,151.87,151.83,30.362784]
[1727338859922,20.0,151.87,151.83,31.67981286]
[1727338860217,6.5841,151.88,151.85,23.776884]
[1727338860402,68.7223498,151.96,151.85,23.776884]
[1727338860403,6.5837,151.89,151.85,23.776884]
[1727338860715,20.71614675,151.94,151.85,30.362184]
[1727338860915,20.71614675,151.94,151.85,46.016884]
[1727338860916,6.5833,151.9,151.85,46.016884]
[1727338861799,6.5833,151.9,151.86,13.42106724]
[1727338862020,6.5833,151.9,151.87,23.776884]
[1727338863793,7.96837786,151.89,151.85,15.6547]
[1727338863994,6.584,151.89,151.86,23.776884]
[1727338867613,1.38437786,151.91,151.86,23.776884]
[1727338867914,6.5833,151.9,151.86,23.776884]
[1727338870610,1.38437786,151.89,151.86,23.776884]
[1727338871524,6.5833,151.9,151.86,23.776884]
[1727338873327,6.5833,151.9,151.86,30.361784]
[1727338873527,20.0,151.93,151.88,13.42106724]
[1727338873729,6.5818,151.94,151.9,13.42106724]
[1727338874106,1.38437786,151.93,151.9,13.42106724]
[1727338874429,6.582,151.93,151.89,23.776884]
[1727338875198,6.5815,151.94,151.89,30.360384]
[1727338875623,6.581,151.96,151.91,23.776884]
[1727338875913,6.5802,151.97,151.93,23.776884]
[1727338878027,0.2574725,151.98,151.93,23.776884]
[1727338878209,6.5802,151.97,151.93,23.776884]
[1727338878718,7.96457786,151.97,151.93,23.776884]
[1727338879627,6.5802,151.97,151.93,23.776884]
[1727338880831,7.96507786,151.96,151.93,23.776884]
[1727338881126,6.5807,151.96,151.93,23.776884]
[1727338881324,6.5807,151.96,151.92,23.776884]
[1727338888450,6.5807,151.96,151.92,37.19795124]
[1727338888909,6.5807,151.96,151.92,43.78025124]
[1727338892938,0.2574725,151.98,151.94,37.19795124]
[1727338893123,6.8375725,151.98,151.94,37.19795124]
[1727338894436,6.5803,151.97,151.94,37.19795124]
[1727338897035,6.8372725,151.98,151.94,43.77945124]
[1727338897248,0.2574725,151.98,151.96,37.19795124]
[1727338906946,0.2574725,151.98,151.96,43.77845124]
[1727338911741,0.2574725,151.98,151.96,30.357384]
[1727338913155,0.2574725,151.98,151.95,16.4523]
[1727338913359,0.2574725,151.98,151.91,15.4211]
[1727338913658,6.8372725,151.98,151.93,6.5818]
[1727338913852,0.2574725,151.98,151.92,29.87656724]
[1727338914157,0.2574725,151.98,151.94,6.5813]
[1727338914834,0.2574725,151.98,151.95,23.776884]
[1727338919961,1.64185036,151.98,151.93,23.776884]
[1727338920338,6.5803,151.97,151.93,23.776884]
[1727338924064,6.5809,151.96,151.93,23.776884]
[1727338924242,1.64185036,151.98,151.93,23.776884]
[1727338924442,6.5802,151.97,151.93,23.776884]
[1727338932039,1.38437786,151.96,151.87,16.5736]
[1727338932246,6.5812,151.95,151.9,6.5829]
[1727338932553,1.38437786,151.94,151.9,6.5829]
[1727338933062,6.5812,151.95,151.9,6.5829]
[1727338933242,6.5812,151.95,151.89,16.4587]
[1727338933444,6.70599,151.97,151.9,23.776884]
[1727338933759,7.96507786,151.96,151.92,6.5823]
[1727338933937,6.5807,151.96,151.92,23.776884]
[1727338936085,6.5807,151.96,151.91,6.5828]
[1727338936086,6.5824,151.92,151.88,23.776884]
[1727338936358,6.5815,151.94,151.89,6.5836]
[1727338937843,6.5815,151.94,151.9,23.776884]
[1727338940475,1.38437786,151.93,151.9,23.776884]
[1727338940765,7.96657786,151.93,151.89,23.776884]
[1727338942570,6.5825,151.92,151.88,23.776884]
[1727338943364,6.5825,151.92,151.88,30.360884]
[1727338944371,1.38437786,151.91,151.85,6.585]
[1727338944663,6.5841,151.89,151.84,6.5858]
[1727338944875,6.5841,151.89,151.82,0.2574725]
[1727338944876,1.38437786,151.88,151.82,0.2574725]
[1727338945470,6.585,151.86,151.82,0.2574725]
[1727338945764,6.585,151.86,151.82,6.8441725]
[1727338946352,6.585,151.86,151.83,23.776884]
[1727338946667,6.585,151.86,151.82,6.8441725]
[1727338946843,6.585,151.86,151.82,0.2574725]
[1727338947173,6.5859,151.84,151.82,0.2574725]
[1727338947560,6.5854,151.85,151.82,0.2574725]
[1727338948268,7.96887786,151.88,151.82,6.8439725]
[1727338948446,20.0,151.86,151.83,23.776884]
[1727338949172,6.5846,151.87,151.83,23.776884]
[1727338956300,20.0,151.89,151.85,23.776884]
[1727338956493,26.5838,151.89,151.85,23.776884]
[1727338957177,6.5842,151.88,151.85,23.776884]
[1727338957379,6.5842,151.88,151.84,25.09386429]
[1727338957574,20.0,151.89,151.85,6.5854]
[1727338957780,6.5836,151.9,151.86,23.776884]
[1727338958080,20.0,151.9,151.86,30.361784]
[1727338959385,7.96807786,151.89,151.85,23.776884]
[1727338963099,6.5845,151.88,151.85,23.776884]
[1727338963400,0.25098,151.9,151.85,23.776884]
[1727338963608,6.5845,151.87,151.85,23.776884]
[1727338963989,6.5842,151.88,151.85,23.776884]
[1727338968885,20.0,151.92,151.86,1.31696371]
[1727338969101,6.5833,151.9,151.86,1.31696371]
[1727338969306,6.5833,151.9,151.85,30.362184]
[1727338969698,6.5837,151.89,151.85,30.362184]
[1727338982207,6.5816,151.94,151.89,30.360484]
[1727338982425,6.5816,151.94,151.9,1.24882897]
[1727338983190,6.3284725,151.98,151.91,23.776884]
[1727338983403,6.3284725,151.98,151.9,1.24882897]
[1727338983404,6.5815,151.94,151.89,30.360484]
[1727338989820,0.25098,151.96,151.89,23.776884]
[1727338990115,6.5819,151.93,151.89,23.776884]
[1727338990999,6.5819,151.93,151.89,30.360584]
[1727338993200,6.5819,151.93,151.89,23.776884]
[1727338994492,7.96687786,151.92,151.89,23.776884]
[1727338994695,6.5825,151.92,151.89,23.776884]
[1727338997725,6.5829,151.91,151.88,23.776884]
[1727338998126,0.25098,151.94,151.86,15.3054]
[1727338998305,6.5833,151.9,151.87,23.776884]
[1727338998618,6.5833,151.9,151.86,15.3054]
[1727339000203,6.5833,151.9,151.87,23.776884]
[1727339000724,7.96807786,151.89,151.86,15.3054]
[1727339000909,6.5837,151.89,151.86,23.776884]
[1727339002797,0.25098,151.92,151.85,16.463]
[1727339003004,0.25098,151.9,151.84,23.776884]
[1727339003222,6.5846,151.87,151.84,23.776884]
[1727339005015,6.5841,151.88,151.84,23.776884]
[1727339005220,1.38437786,151.87,151.84,23.776884]
[1727339005609,6.5841,151.88,151.84,23.776884]
[1727339006725,7.96847786,151.88,151.84,23.776884]
[1727339006926,6.5841,151.88,151.84,23.776884]
[1727339009029,1.38437786,151.87,151.84,23.776884]
[1727339013333,6.5841,151.88,151.84,23.776884]
[1727339014538,7.96847786,151.88,151.84,23.776884]
[1727339014741,1.38437786,151.88,151.84,6.5856]
[1727339018235,21.38437786,151.9,151.84,29.88496724]
[1727339018437,20.0,151.9,151.85,25.09390825]
[1727339018613,6.0189,151.93,151.89,6.5833]
[1727339018813,6.5816,151.94,151.89,6.5833]
[1727339019919,6.5816,151.94,151.89,7.89995184]
[1727339020439,6.5816,151.94,151.89,6.5833]
[1727339021223,20.0,151.93,151.89,6.5833]
[1727339022241,21.38437786,151.93,151.89,6.5833]
[1727339024746,20.0,151.93,151.89,6.5833]
[1727339025445,21.38437786,151.93,151.89,6.5833]
[1727339026520,21.38437786,151.93,151.88,16.4598]
[1727339026521,1.38437786,151.93,151.88,16.4598]
[1727339026733,0.12549,151.93,151.88,16.4598]
[1727339027832,6.5844,151.88,151.84,6.5858]
[1727339028025,6.5837,151.89,151.85,6.5853]
[1727339028940,7.96757786,151.9,151.85,6.5853]
[1727339032750,6.70929,151.89,151.84,23.0499]
[1727339033045,1.38437786,151.88,151.84,23.0499]
[1727339034157,6.70929,151.89,151.84,23.0499]
[1727339035263,20.0,151.91,151.88,6.5841]
[1727339035432,20.0,151.91,151.86,16.4617]
[1727339035433,1.38437786,151.9,151.87,6.5844]
[1727339035758,1.38437786,151.9,151.86,23.0466]
[1727339035956,26.5828,151.91,151.86,23.0466]
[1727339036161,27.96717786,151.91,151.86,23.0466]
[1727339038752,26.5828,151.91,151.86,23.0466]
[1727339039139,26.5828,151.91,151.87,6.5845]
[1727339039333,27.96717786,151.91,151.87,6.5845]
[1727339040358,6.5833,151.9,151.86,16.4617]
[1727339040659,1.38437786,151.89,151.86,16.4617]
[1727339041358,7.96837786,151.89,151.84,6.5858]
[1727339041566,1.38437786,151.88,151.84,6.5858]
[1727339042041,6.5847,151.87,151.83,23.0514]
[1727339042232,1.38437786,151.86,151.83,23.0514]
[1727339042437,1.38437786,151.86,151.83,16.4652]
[1727339044262,6.585,151.86,151.83,16.4652]
[1727339044654,6.5845,151.87,151.83,24.36872666]
[1727339045059,6.5842,151.88,151.83,24.36872666]
[1727339045454,36.3828,151.91,151.84,23.776884]
[1727339045641,6.5837,151.89,151.84,23.776884]
[1727339045842,6.5837,151.89,151.84,30.362684]
[1727339046068,6.5837,151.89,151.85,6.5853]
[1727339046246,20.0,151.89,151.85,6.5853]
[1727339047061,21.38437786,151.89,151.85,6.5853]
[1727339047478,20.0,151.89,151.85,6.5853]
[1727339048458,16.3828,151.91,151.87,6.5845]
[1727339048668,6.5828,151.91,151.87,6.5845]
[1727339049058,6.5828,151.91,151.86,1.31692102]
[1727339049259,6.5828,151.91,151.86,6.5849]
[1727339049558,1.38437786,151.9,151.86,6.5849]
[1727339050088,7.96767786,151.9,151.86,6.5849]
[1727339050486,7.96807786,151.89,151.85,16.4629]
[1727339050659,1.38437786,151.88,151.82,13.67853974]
[1727339050865,6.5842,151.88,151.83,6.5862]
[1727339051081,1.38437786,151.87,151.83,6.5862]
[1727339052173,6.5846,151.87,151.83,6.5862]
[1727339052463,1.38437786,151.86,151.83,6.5862]
[1727339052891,6.5846,151.87,151.83,6.5862]
[1727339053593,6.70969,151.88,151.83,6.5862]
[1727339053890,1.38437786,151.87,151.83,6.5862]
[1727339054663,6.70929,151.89,151.84,6.5858]
[1727339054873,1.38437786,151.88,151.84,6.5858]
[1727339055072,1.38437786,151.88,151.82,16.7238725]
[1727339055274,6.5846,151.87,151.82,23.3105725]
[1727339055584,7.96947786,151.86,151.82,23.3105725]
[1727339055778,6.5851,151.86,151.82,23.3105725]
[1727339060766,6.5846,151.87,151.83,6.5862]
[1727339061180,1.38437786,151.86,151.83,6.5862]
[1727339062176,6.5857,151.85,151.82,0.2574725]
[1727339062962,1.38437786,151.84,151.82,0.2574725]
[1727339067778,6.4307,151.87,151.82,0.2574725]
[1727339067986,6.585,151.86,151.82,6.8440725]
[1727339068896,20.0,151.86,151.83,25.09406356]
[1727339069089,20.0,151.86,151.83,6.5861]
[1727339070201,20.0,151.86,151.82,0.2574725]
[1727339070398,26.5853,151.86,151.82,0.2574725]
[1727339070605,7.96967786,151.86,151.82,0.2574725]
[1727339070808,6.5854,151.85,151.82,0.2574725]
[1727339072099,6.5851,151.86,151.82,6.8441725]
[1727339073700,20.25098,151.89,151.83,23.776884]
[1727339073881,20.0,151.86,151.83,6.5861]
[1727339075606,20.0,151.87,151.84,23.776884]
[1727339076002,26.5846,151.87,151.84,23.776884]
[1727339077701,26.5846,151.87,151.83,23.776884]
[1727339077921,6.5855,151.85,151.82,0.2574725]
[1727339078097,1.38437786,151.84,151.82,0.2574725]
[1727339078292,6.5855,151.85,151.82,0.2574725]
[1727339083411,6.5855,151.85,151.82,24.0343565]
[1727339083706,6.586,151.84,151.82,0.2574725]
[1727339083920,1.38437786,151.84,151.82,0.2574725]
[1727339084084,6.5863,151.83,151.82,0.2574725]
[1727339084907,7.97067786,151.83,151.82,0.2574725]
[1727339085111,6.5863,151.83,151.82,0.2574725]
[1727339092712,26.83728,151.83,151.82,0.2574725]
[1727339099329,26.5863,151.83,151.82,0.2574725]
[1727339100331,26.71179,151.83,151.82,0.2574725]
[1727339104135,26.83728,151.83,151.82,0.2574725]
[1727339115141,26.5863,151.83,151.82,0.2574725]
[1727339115816,20.0,151.83,151.82,0.2574725]
[1727339116020,20.0,151.83,151.82,24.0343565]
[1727339116329,6.585,151.87,151.82,24.0343565]
[1727339116537,16.4596,151.89,151.82,24.0343565]
[1727339117035,6.5855,151.85,151.82,24.0343565]
[1727339120522,6.5851,151.86,151.83,23.776884]
[1727339120916,7.96977786,151.85,151.82,24.0343565]
[1727339121118,1.38437786,151.84,151.82,24.0343565]
[1727339124252,1.38437786,151.84,151.82,0.2574725]
[1727339124540,21.63535786,151.88,151.82,0.2574725]
[1727339124927,26.83728,151.83,151.82,0.2574725]
[1727339132349,6.591,151.72,151.68,0.2574725]
[1727339132577,41.80657116,151.72,151.68,0.2574725]
[1727339133232,6.5923,151.69,151.68,0.2574725]
[1727339133425,26.84328,151.69,151.68,0.2574725]
[1727339137944,26.84328,151.69,151.62,0.4366939]
[1727339137945,20.25098,151.68,151.62,0.4366939]
[1727339138150,20.0,151.63,151.62,0.4366939]
[1727339139958,20.0,151.63,151.62,0.2807143]
[1727339150948,26.595,151.63,151.62,0.2807143]
[1727339151861,26.84598,151.63,151.62,0.2807143]
[1727339152073,26.595,151.63,151.62,0.2807143]
[1727339158469,26.84598,151.63,151.62,0.2807143]
[1727339166658,26.595,151.63,151.62,0.2807143]
[1727339168669,26.72049,151.63,151.62,0.2807143]
[1727339171969,26.595,151.63,151.62,0.2807143]
[1727339176887,26.84598,151.63,151.62,0.2807143]
[1727339178888,28.23035786,151.63,151.62,0.2807143]
[1727339179387,26.84768,151.59,151.58,0.3874501]
[1727339179989,26.72219,151.59,151.58,0.3874501]
[1727339180493,26.5967,151.59,151.58,0.3874501]
[1727339182677,20.0,151.59,151.58,0.3874501]
[1727339183067,26.5967,151.59,151.58,0.3874501]
[1727339187399,26.72219,151.59,151.58,0.3874501]
[1727339187873,26.5967,151.59,151.58,0.3874501]
[1727339189974,42.72317317,151.65,151.58,0.3874501]
[1727339189975,0.12549,151.64,151.58,0.3874501]
[1727339190181,6.5962,151.61,151.58,24.1643341]
[1727339191411,20.0,151.66,151.6,23.776884]
[1727339191712,20.0,151.66,151.59,23.776884]
[1727339192094,20.0,151.62,151.59,23.776884]
[1727339192382,6.5953,151.63,151.59,23.776884]
[1727339194005,0.12549,151.64,151.58,0.3874501]
[1727339194308,6.5955,151.62,151.58,0.3874501]
[1727339194509,6.5962,151.61,151.58,0.3874501]
[1727339194711,1.38437786,151.63,151.58,0.3874501]
[1727339194887,7.97967786,151.63,151.58,0.3874501]
[1727339195089,6.5953,151.63,151.58,0.3874501]
[1727339195510,6.5955,151.62,151.58,24.1643341]
[1727339199116,6.5962,151.61,151.58,24.1643341]
[1727339200513,6.5962,151.61,151.58,24.1144432]
[1727339202207,6.5964,151.6,151.58,0.3375592]
[1727339204911,6.5964,151.6,151.58,24.1144432]
[1727339208290,0.25098,151.63,151.58,24.1144432]
[1727339208497,6.5959,151.61,151.58,24.1144432]
[1727339210521,6.5963,151.6,151.58,24.1144432]
[1727339213820,0.12549,151.63,151.58,24.1144432]
[1727339214125,6.5959,151.61,151.58,24.1144432]
[1727339217320,0.25098,151.63,151.58,24.1144432]
[1727339217519,6.5964,151.6,151.58,24.1144432]
[1727339224833,6.5959,151.61,151.58,24.1144432]
[1727339227734,6.5955,151.62,151.58,24.1144432]
[1727339227935,6.5955,151.62,151.6,23.776884]
[1727339228546,6.5955,151.62,151.59,23.776884]
[1727339229531,6.5955,151.62,151.58,24.1144432]
[1727339230142,6.5937,151.66,151.63,23.776884]
[1727339230635,6.5934,151.67,151.63,23.776884]
[1727339230840,6.5934,151.67,151.63,23.8594456]
[1727339232742,6.5942,151.65,151.63,23.8594456]
[1727339234641,0.25098,151.7,151.63,23.8594456]
[1727339234832,1.63535786,151.7,151.63,23.8594456]
[1727339235227,6.5935,151.67,151.63,23.8594456]
[1727339235739,6.5933,151.67,151.63,23.8594456]